fUSD/lending_fUSD_20250607
["ID","MTS","AMOUNT","RATE_DAILY","PERIOD"]
[364895801,1749286232502,-697.8118815,0.00017065,2]
[364895802,1749286232514,-2233.90930612,0.00017065,2]
[364895803,1749286232525,-6810.26340292,0.00017065,2]
[364895804,1749286232538,-4491.00918604,0.00017065,2]
[364895805,1749286232547,-151.0,0.00017185,2]
[364895806,1749286232557,-496.23484628,0.000176,6]
[364895807,1749286232568,-45840.05345364,0.00017622,2]
[364895808,1749286232636,-255.24588608,0.00017622,2]
[364895809,1749286232648,-425.18333004,0.00017622,2]
[364895810,1749286232814,-604.04446757,0.00017622,2]
[364895811,1749286232963,-335.535,0.00017622,2]
[364895812,1749286232974,-3276.99295857,0.00017622,2]
[364895813,1749286232986,-1835.71674707,0.00017622,2]
[364895814,1749286232996,-250.0,0.00017626,2]
[364895815,1749286233005,-300.0,0.00017626,2]
[364895816,1749286233015,-800.0,0.00017626,4]
[364895817,1749286233026,-3803.93556855,0.00017631,2]
[364895818,1749286233042,-300.0,0.00017631,2]
[364895819,1749286233052,-1200.0,0.00017631,2]
[364895820,1749286233062,-7908.90132955,0.00017632,2]
[364895821,1749286233118,-1000.0,0.00017632,2]
[364895822,1749286233546,-158.48703992,0.00017631,2]
[364895823,1749286237171,-161.02097606,0.00017631,2]
[364895825,1749286237689,-180.49198402,0.00017631,2]
[364895826,1749286237699,-500.0,0.00017631,2]
[364895827,1749286237709,-197.94074712,0.00017631,2]
[364895828,1749286237720,-244.37353392,0.00017631,2]
[364895829,1749286237733,-255.62646608,0.00017631,2]
[364895830,1749286237742,-219.03923376,0.00017631,2]
[364895831,1749286237751,-500.0,0.00017631,2]
[364895832,1749286237761,-500.0,0.00017631,2]
[364895833,1749286237771,-173.74981266,0.00017631,2]
[364895834,1749286237780,-500.0,0.00017631,2]
[364895835,1749286237791,-500.0,0.00017631,2]
[364895836,1749286237800,-500.0,0.00017631,2]
[364895837,1749286237810,-500.0,0.00017631,2]
[364895838,1749286237820,-453.272488,0.00017631,2]
[364895839,1749286237830,-635.06579907,0.00017631,2]
[364895840,1749286237840,-500.0,0.00017631,2]
[364895841,1749286237849,-500.0,0.00017631,2]
[364895842,1749286237859,-500.0,0.00017631,2]
[364895843,1749286237868,-500.0,0.00017631,2]
[364895844,1749286237878,-500.0,0.00017631,2]
[364895845,1749286237887,-500.0,0.00017631,2]
[364895846,1749286237897,-3998.41152669,0.00017632,2]
[364895847,1749286237911,-93785.16887228,0.00017632,2]
[364895848,1749286237920,-250.0,0.00017667,2]
[364895849,1749286237931,-243.10896136,0.000177,6]
[364895850,1749286237941,-1400.0,0.000177,6]
[364895851,1749286237951,-300.0,0.0001775,2]
[364895852,1749286237961,-800.0,0.0001775,4]
[364895853,1749286237971,-4400.0,0.000178,6]
[364895854,1749286237980,-2200.0,0.000178,6]
[364895855,1749286237990,-300.0,0.0001788,2]
[364895856,1749286237999,-800.0,0.0001788,4]
[364895857,1749286238009,-162.15,0.0001789,2]
[364895858,1749286238019,-300.0,0.00017899,2]
[364895859,1749286238029,-5900.0,0.000179,6]
[364895860,1749286238039,-31931.43211209,0.000179,2]
[364895861,1749286238048,-1327.90697042,0.000179,2]
[364895862,1749286238057,-4410.31543641,0.000179,2]
[364895863,1749286238067,-3426.36956013,0.000179,2]
[364895864,1749286238076,-2900.0,0.000179,6]
[364895865,1749286238085,-162.15,0.00017963,2]
[364895866,1749286238095,-99484.0,0.00017973,2]
[364895867,1749286238105,-441.0,0.00017973,2]
[364895869,1749286238115,-208.92109208,0.00017973,2]
[364895870,1749286238123,-500.0,0.00017973,2]
[364895871,1749286238133,-500.0,0.00017973,2]
[364895872,1749286238142,-500.0,0.00017973,2]
[364895873,1749286238151,-500.0,0.00017973,2]
[364895874,1749286238161,-159.855648,0.00017973,2]
[364895875,1749286238170,-156.18083481,0.00017973,2]
[364895876,1749286238180,-437.40170607,0.00017973,2]
[364895877,1749286238189,-359.6059757,0.00017973,2]
[364895878,1749286238199,-500.0,0.00017973,2]
[364895879,1749286238209,-159.81357408,0.00017973,2]
[364895880,1749286238218,-500.0,0.00017973,2]
[364895881,1749286238228,-159.79947215,0.00017973,2]
[364895882,1749286238237,-361.89749755,0.00017973,2]
[364895883,1749286238246,-162.15,0.0001798,2]
[364895884,1749286238256,-219.56,0.0001799,2]
[364895885,1749286238270,-219.56,0.0001799,2]
[364895886,1749286238280,-219.56,0.0001799,2]
[364895887,1749286238291,-219.56,0.0001799,2]
[364895888,1749286238300,-219.56,0.0001799,2]
[364895889,1749286238310,-219.56,0.0001799,2]
[364895890,1749286238320,-219.56,0.0001799,2]
[364895891,1749286238329,-219.56,0.0001799,2]
[364895892,1749286238339,-219.56,0.0001799,2]
[364895893,1749286238349,-219.56,0.0001799,2]
[364895894,1749286238360,-219.56,0.0001799,2]
[364895895,1749286238372,-219.56,0.0001799,2]
[364895896,1749286238382,-219.56,0.0001799,2]
[364895897,1749286238391,-219.56,0.0001799,2]
[364895898,1749286238401,-219.56,0.0001799,2]
[364895899,1749286238411,-219.56,0.0001799,2]
[364895900,1749286238421,-219.56,0.0001799,2]
[364895901,1749286238431,-219.56,0.0001799,2]
[364895902,1749286238441,-219.56,0.0001799,2]
[364895903,1749286238451,-219.56,0.0001799,2]
[364895904,1749286238461,-219.56,0.0001799,2]
[364895905,1749286238470,-219.56,0.0001799,2]
[364895906,1749286238479,-219.56,0.0001799,2]
[364895907,1749286238489,-219.56,0.0001799,2]
[364895908,1749286238498,-219.56,0.0001799,2]
[364895909,1749286238508,-219.56,0.0001799,2]
[364895910,1749286238517,-219.56,0.0001799,2]
[364895911,1749286238527,-219.56,0.0001799,2]
[364895912,1749286238537,-219.56,0.0001799,2]
[364895913,1749286238547,-219.56,0.0001799,2]
[364895914,1749286238557,-219.56,0.0001799,2]
[364895915,1749286238567,-4204.14061871,0.0001799,2]
[364895916,1749286238576,-219.56,0.0001799,2]
[364895917,1749286238586,-219.56,0.0001799,2]
[364895918,1749286238595,-219.56,0.0001799,2]
[364895919,1749286238816,-219.56,0.0001799,2]
[364895920,1749286238826,-219.56,0.0001799,2]
[364895921,1749286238837,-219.56,0.0001799,2]
[364895922,1749286238847,-219.56,0.0001799,2]
[364895923,1749286238857,-219.56,0.0001799,2]
[364895924,1749286238867,-219.56,0.0001799,2]
[364895925,1749286238877,-219.56,0.0001799,2]
[364895926,1749286238887,-219.56,0.0001799,2]
[364895927,1749286238896,-162.15,0.0001799,2]
[364895928,1749286238907,-550.0,0.00017999,2]
[364895929,1749286238917,-1054.2262001,0.00017999,5]
[364895930,1749286238930,-1054.2262001,0.00017999,5]
[364895931,1749286238940,-1054.2262001,0.00017999,5]
[364895932,1749286238950,-1054.2262001,0.00017999,5]
[364895933,1749286238959,-1054.2262001,0.00017999,5]
[364895934,1749286238969,-1252.39902294,0.00017999,5]
[364895935,1749286238978,-175.60863255,0.00017999,2]
[364895936,1749286238988,-534.41287322,0.00017999,2]
[364895937,1749286238998,-500.0,0.00017999,2]
[364895938,1749286239007,-202.27828092,0.00017999,2]
[364895939,1749286239016,-516.05245481,0.00017999,2]
[364895940,1749286239026,-2812678.59070968,0.00018,120]
[364895941,1749286239037,-4350.90009817,0.00018,2]
[364895942,1749286239047,-250.0,0.00018,2]
[364895943,1749286239057,-250.0,0.00018,2]
[364895944,1749286239066,-250.0,0.00018,2]
[364895945,1749286239075,-252.7,0.00018,2]
[364895946,1749286239085,-219.56,0.00018001,2]
[364895947,1749286239095,-31931.43211205,0.00018011,2]
[364895948,1749286239105,-1327.90697037,0.00018043,2]
[364895949,1749286239115,-31931.43211205,0.00018122,2]
[364895950,1749286239125,-1327.90697037,0.00018186,2]
[364895951,1749286239135,-219.56,0.00018223,2]
[364895952,1749286239146,-150.0,0.00018227,2]
[364895953,1749286239157,-31931.43211205,0.00018233,2]
[364895954,1749286239166,-1327.90697037,0.00018329,2]
[364895955,1749286239176,-219.56,0.00018334,2]
[364895956,1749286239185,-2751.0,0.00018342,2]
[364895957,1749286239195,-1852.42,0.00018342,2]
[364895958,1749286239205,-31931.43211205,0.00018344,2]
[364895959,1749286239216,-922.56,0.00018383,2]
[364895960,1749286239225,-31931.43211205,0.00018456,2]
[364895961,1749286239235,-1327.90697037,0.00018471,2]
[364895962,1749286239244,-1000.0,0.00018521,2]
[364895963,1749286239254,-1000.0,0.00018521,2]
[364895964,1749286239267,-505.67646133,0.00018521,2]
[364895965,1749286239276,-1000.0,0.00018521,2]
[364895966,1749286239286,-1000.0,0.00018521,2]
[364895967,1749286239295,-1000.0,0.00018521,2]
[364895968,1749286239306,-219.56,0.00018557,2]
[364895969,1749286239316,-31931.43211205,0.00018567,2]
[364895970,1749286239327,-19876.48,0.000186,2]
[364895971,1749286239339,-1327.90697037,0.00018614,2]
[364895972,1749286239348,-621.73528574,0.00018642,2]
[364895973,1749286239358,-219.56,0.00018668,2]
[364895974,1749286239367,-31931.43211205,0.00018678,2]
[364895975,1749286239377,-219.56,0.0001869,2]
[364895976,1749286239389,-7400.0,0.000187,6]
[364895977,1749286239399,-59629.26,0.000187,2]
[364895978,1749286239408,-3700.0,0.000187,6]
[364895979,1749286239419,-1327.90697037,0.00018757,2]
[364895980,1749286239430,-219.56,0.00018779,2]
[364895981,1749286239441,-31931.43211205,0.00018789,2]
[364895982,1749286239451,-219.56,0.0001879,2]
[364895983,1749286239461,-1498.00626042,0.000188,2]
[364895984,1749286239472,-162.8942633,0.000188,2]
[364895985,1749286239482,-29914.74931719,0.000188,2]
[364895986,1749286239493,-1400.0,0.000188,6]
[364895987,1749286239503,-700.0,0.000188,6]
[364895988,1749286239513,-247.0,0.0001885,2]
[364895989,1749286239523,-4204.14061871,0.0001889,2]
[364895990,1749286239532,-219.56,0.0001889,2]
[364895991,1749286239542,-219.56,0.0001889,2]
[364895992,1749286239552,-219.56,0.0001889,2]
[364895993,1749286239563,-219.56,0.0001889,2]
[364895994,1749286239573,-219.56,0.0001889,2]
[364895995,1749286239582,-219.56,0.0001889,2]
[364895996,1749286239592,-219.56,0.0001889,2]
[364895997,1749286239602,-219.56,0.0001889,2]
[364895998,1749286239613,-219.56,0.0001889,2]
[364895999,1749286239623,-219.56,0.0001889,2]
[364896000,1749286239632,-219.56,0.0001889,2]
[364896001,1749286239642,-219.56,0.0001889,2]
[364896002,1749286239651,-219.56,0.0001889,2]
[364896003,1749286239661,-219.56,0.0001889,2]
[364896004,1749286239671,-219.56,0.0001889,2]
[364896005,1749286239680,-219.56,0.0001889,2]
[364896006,1749286239690,-219.56,0.0001889,2]
[364896007,1749286239699,-219.56,0.0001889,2]
[364896008,1749286239709,-219.56,0.0001889,2]
[364896009,1749286239718,-219.56,0.0001889,2]
[364896010,1749286239728,-219.56,0.0001889,2]
[364896011,1749286239737,-219.56,0.0001889,2]
[364896012,1749286239746,-219.56,0.0001889,2]
[364896013,1749286239756,-219.56,0.0001889,2]
[364896014,1749286239766,-219.56,0.0001889,2]
[364896015,1749286239776,-219.56,0.0001889,2]
[364896016,1749286239785,-219.56,0.0001889,2]
[364896017,1749286239796,-219.56,0.0001889,2]
[364896018,1749286239806,-219.56,0.0001889,2]
[364896019,1749286239816,-219.56,0.0001889,2]
[364896020,1749286239826,-219.56,0.0001889,2]
[364896021,1749286239836,-219.56,0.0001889,2]
[364896022,1749286239846,-219.56,0.0001889,2]
[364896023,1749286239856,-219.56,0.0001889,2]
[364896024,1749286239866,-219.56,0.0001889,2]
[364896025,1749286239876,-219.56,0.0001889,2]
[364896026,1749286239886,-219.56,0.0001889,2]
[364896027,1749286239896,-219.56,0.0001889,2]
[364896028,1749286239906,-219.56,0.0001889,2]
[364896029,1749286239916,-300.0,0.00018898,2]
[364896030,1749286239925,-200.0,0.00018899,2]
[364896031,1749286239936,-2000000.0,0.000189,120]
[364896032,1749286239945,-1400.0,0.000189,6]
[364896033,1749286239956,-31931.43211205,0.000189,2]
[364896034,1749286239966,-1327.90697037,0.000189,2]
[364896035,1749286239976,-700.0,0.000189,6]
[364896036,1749286239986,-500.0,0.00018973,2]
[364896037,1749286239996,-500.0,0.00018973,2]
[364896038,1749286240006,-500.4878952,0.00018973,2]
[364896039,1749286240015,-161.05896029,0.00018973,2]
[364896040,1749286240026,-500.0,0.00018973,2]
[364896041,1749286240035,-500.0,0.00018973,2]
[364896042,1749286240046,-500.0,0.00018973,2]
[364896043,1749286240056,-500.0,0.00018973,2]
[364896044,1749286240065,-500.0,0.00018973,2]
[364896045,1749286240075,-500.0,0.00018973,2]
[364896046,1749286240085,-500.0,0.00018973,2]
[364896047,1749286240095,-500.0,0.00018973,2]
[364896048,1749286240105,-500.0,0.00018973,2]
[364896049,1749286240114,-159.855648,0.00018973,2]
[364896050,1749286240124,-159.855648,0.00018973,2]
[364896051,1749286240134,-501.36449879,0.00018973,2]
[364896052,1749286240144,-500.0,0.00018973,2]
[364896053,1749286240154,-500.0,0.00018973,2]
[364896054,1749286240164,-199.76676848,0.00018973,2]
[364896055,1749286240174,-159.855648,0.00018973,2]
[364896056,1749286240184,-500.0,0.00018973,2]
[364896057,1749286240194,-159.81792377,0.00018973,2]
[364896058,1749286240203,-500.0,0.00018973,2]
[364896059,1749286240213,-4204.14061871,0.0001899,2]
[364896060,1749286240223,-219.56,0.0001899,2]
[364896061,1749286240234,-219.56,0.0001899,2]
[364896062,1749286240244,-219.56,0.0001899,2]
[364896063,1749286240253,-219.56,0.0001899,2]
[364896064,1749286240266,-219.56,0.0001899,2]
[364896065,1749286240276,-219.56,0.0001899,2]
[364896066,1749286240287,-219.56,0.0001899,2]
[364896067,1749286240297,-219.56,0.0001899,2]
[364896068,1749286240307,-219.56,0.0001899,2]
[364896069,1749286240317,-219.56,0.0001899,2]
[364896070,1749286240326,-167.446,0.00018999,2]
[364896071,1749286240336,-300.0,0.00018999,2]
[364896072,1749286240347,-300.0,0.00018999,2]
[364896073,1749286240358,-308.44116766,0.00018999,2]
[364896074,1749286240367,-300.0,0.00018999,2]
[364896075,1749286240378,-666.0,0.00018999,2]
[364896076,1749286240388,-6415199.21042836,0.00019,120]
[364896077,1749286240399,-1141.24261711,0.00019,2]
[364896078,1749286240409,-200.0,0.00019,2]
[364896079,1749286240420,-292.0,0.00019014,2]
[364896080,1749286240431,-1500.0,0.00019068,2]
[364896081,1749286240441,-1500.0,0.00019068,2]
[364896082,1749286240451,-160.17876236,0.00019068,2]
[364896083,1749286240461,-501.46891278,0.00019068,2]
[364896084,1749286240472,-1500.0,0.00019068,2]
[364896085,1749286240481,-935.0,0.00019079,2]
[364896087,1749286240491,-200.0,0.00019088,2]
[364896088,1749286240502,-168.66,0.00019108,2]
[364896089,1749286240511,-1073.34290273,0.00019116,2]
[364896090,1749286240520,-159.855648,0.00019173,2]
[364896091,1749286240529,-174.02092274,0.00019173,2]
[364896092,1749286240540,-159.8187428,0.00019173,2]
[364896093,1749286240550,-409.89721347,0.00019173,2]
[364896094,1749286240560,-159.871616,0.00019173,2]
[364896095,1749286240570,-159.855648,0.00019173,2]
[364896096,1749286240580,-159.92896135,0.00019173,2]
[364896097,1749286240590,-159.855648,0.00019173,2]
[364896098,1749286240600,-159.855648,0.00019173,2]
[364896099,1749286240612,-159.855648,0.00019173,2]
[364896100,1749286240622,-502.14045788,0.00019173,2]
[364896101,1749286240631,-500.0,0.00019173,2]
[364896102,1749286240642,-159.855648,0.00019173,2]
[364896103,1749286240652,-500.0,0.00019173,2]
[364896104,1749286240662,-318.57535067,0.00019173,2]
[364896105,1749286240672,-500.0,0.00019173,2]
[364896106,1749286240683,-500.0,0.00019173,2]
[364896107,1749286240694,-266.03634696,0.00019173,2]
[364896108,1749286240703,-162.46023347,0.00019173,2]
[364896109,1749286240713,-500.0,0.00019173,2]
[364896110,1749286240723,-160.13082221,0.00019173,2]
[364896111,1749286240732,-500.0,0.00019173,2]
[364896112,1749286240742,-500.0,0.00019173,2]
[364896113,1749286240752,-500.0,0.00019173,2]
[364896114,1749286240762,-483.29164387,0.00019173,2]
[364896115,1749286240772,-500.0,0.00019173,2]
[364896116,1749286240782,-500.0,0.00019173,2]
[364896117,1749286240792,-159.871616,0.00019173,2]
[364896118,1749286240802,-1000.0,0.00019177,2]
[364896119,1749286240813,-326.52672753,0.00019177,2]
[364896120,1749286240824,-300.0,0.00019177,2]
[364896121,1749286240834,-666.0,0.00019177,2]
[364896122,1749286240843,-488.35105783,0.00019178,2]
[364896123,1749286240853,-200.0,0.0001919,2]
[364896124,1749286240863,-1218.0,0.00019211,2]
[364896125,1749286240873,-200.0,0.00019279,2]
[364896126,1749286240882,-1680.0,0.00019339,2]
[364896127,1749286240892,-200.0,0.00019382,2]
[364896128,1749286240902,-250.0,0.00019384,2]
[364896129,1749286240912,-300.0,0.00019384,2]
[364896130,1749286240922,-800.0,0.00019384,4]
[364896131,1749286240932,-151.0,0.00019436,2]
[364896132,1749286240941,-300.0,0.0001947,2]
[364896133,1749286240951,-800.0,0.0001947,4]
[364896134,1749286240961,-200.0,0.00019472,2]
[364896135,1749286240971,-1024.2844386,0.00019521,2]
[364896136,1749286240981,-501.50822778,0.00019521,2]
[364896137,1749286240991,-503.04412446,0.00019521,2]
[364896138,1749286241001,-154.89850209,0.00019521,2]
[364896139,1749286241011,-1000.0,0.00019521,2]
[364896140,1749286241021,-504.39927176,0.00019521,2]
[364896141,1749286241031,-501.75925322,0.00019521,2]
[364896142,1749286241042,-1000.0,0.00019521,2]
[364896143,1749286241051,-526.05526299,0.00019521,2]
[364896144,1749286241061,-1000.0,0.00019521,2]
[364896145,1749286241071,-502.45705283,0.00019521,2]
[364896146,1749286241081,-500.90964118,0.00019521,2]
[364896147,1749286241091,-151.0,0.00019521,2]
[364896148,1749286241100,-151.0,0.00019521,2]
[364896149,1749286241110,-151.0,0.00019521,2]
[364896150,1749286241120,-151.0,0.00019521,2]
[364896151,1749286241130,-151.0,0.00019521,2]
[364896152,1749286241140,-151.0,0.00019521,2]
[364896153,1749286241150,-245.0,0.00019521,2]
[364896154,1749286241160,-420.0,0.00019532,2]
[364896155,1749286241169,-151.0,0.00019539,2]
[364896156,1749286241179,-151.0,0.00019539,2]
[364896157,1749286241190,-151.0,0.00019539,2]
[364896158,1749286241200,-200.559063,0.00019539,2]
[364896159,1749286241210,-159.855648,0.00019573,2]
[364896160,1749286241219,-200.0,0.00019576,2]
[364896161,1749286241229,-151.0,0.00019576,2]
[364896162,1749286241238,-1265.13015566,0.00019616,2]
[364896163,1749286241248,-2000.0,0.00019616,2]
[364896164,1749286241258,-2000.0,0.00019616,2]
[364896165,1749286241271,-200.0,0.00019666,2]
[364896166,1749286241281,-151.0,0.000197,2]
[364896167,1749286241292,-500.0,0.00019721,2]
[364896168,1749286241302,-314.40797005,0.00019721,2]
[364896169,1749286241312,-502.92454462,0.00019721,2]
[364896170,1749286241322,-1000.0,0.00019721,2]
[364896171,1749286241333,-1000.0,0.00019721,2]
[364896172,1749286241346,-1000.0,0.00019721,2]
[364896173,1749286241356,-1000.0,0.00019721,2]
[364896174,1749286241366,-1000.0,0.00019721,2]
[364896175,1749286241376,-1000.0,0.00019721,2]
[364896176,1749286241385,-1000.0,0.00019721,2]
[364896177,1749286241395,-794.12,0.00019737,2]
[364896178,1749286241404,-200.0,0.00019771,2]
[364896179,1749286241414,-168.66,0.00019896,2]
[364896180,1749286241424,-151.0,0.00019973,2]
[364896181,1749286241434,-156.587,0.00019984,2]
[364896182,1749286241445,-276.27,0.00019999,2]
[364896183,1749286241454,-4000.0,0.0002,4]
[364896184,1749286241464,-151.0,0.0002,2]
[364896185,1749286241473,-153.118461,0.0002,2]
[364896186,1749286241484,-1545.07729452,0.0002,2]
[364896187,1749286241494,-701.31502846,0.00020068,2]
[364896188,1749286241504,-1500.0,0.00020068,2]
[364896189,1749286241513,-1500.0,0.00020068,2]
[364896190,1749286241523,-2500.0,0.00020164,2]
[364896191,1749286241533,-620.82237611,0.00020164,2]
[364896192,1749286241543,-287.9,0.00020187,2]
[364896193,1749286241553,-1424.0,0.00020231,2]
[364896194,1749286241563,-1500.0,0.00020268,2]
[364896195,1749286241573,-1500.0,0.00020268,2]
[364896196,1749286241583,-1241.6875011,0.00020268,2]
[364896197,1749286241592,-1500.0,0.00020268,2]
[364896198,1749286241602,-919.77344038,0.00020268,2]
[364896199,1749286241613,-1500.0,0.00020268,2]
[364896200,1749286241623,-695.26780228,0.00020268,2]
[364896201,1749286241633,-151.0,0.00020532,2]
[364896202,1749286241643,-20811.53,0.00020548,2]
[364896203,1749286241652,-287.0,0.00020601,2]
[364896204,1749286241662,-2000.0,0.00020616,2]
[364896205,1749286241672,-1028.54555694,0.00020616,2]
[364896206,1749286241682,-168.66,0.00020685,2]
[364896207,1749286241693,-300.0,0.0002071,2]
[364896208,1749286241702,-666.0,0.0002071,2]
[364896209,1749286241712,-695.02524909,0.00020711,2]
[364896210,1749286241721,-500.0,0.00020711,2]
[364896211,1749286241731,-513.7718156,0.00020711,2]
[364896212,1749286241741,-500.0,0.00020711,2]
[364896213,1749286241751,-833.11334523,0.00020711,2]
[364896214,1749286241761,-600.0,0.00020711,2]
[364896215,1749286241771,-600.0,0.00020711,2]
[364896216,1749286241781,-600.0,0.00020711,2]
[364896217,1749286241790,-600.0,0.00020711,2]
[364896218,1749286241800,-600.0,0.00020711,2]
[364896219,1749286241810,-1000.0,0.00020711,2]
[364896220,1749286241821,-600.0,0.00020711,2]
[364896221,1749286241830,-600.0,0.00020711,2]
[364896222,1749286241840,-1000.0,0.00020711,2]
[364896223,1749286241850,-600.0,0.00020711,2]
[364896224,1749286241860,-600.0,0.00020711,2]
[364896225,1749286241870,-1000.0,0.00020711,2]
[364896226,1749286241879,-600.0,0.00020711,2]
[364896227,1749286241889,-600.0,0.00020711,2]
[364896228,1749286241899,-600.0,0.00020711,2]
[364896229,1749286241908,-1000.0,0.00020711,2]
[364896230,1749286241918,-600.0,0.00020711,2]
[364896231,1749286241928,-600.0,0.00020711,2]
[364896232,1749286241938,-510.58940832,0.00020711,2]
[364896233,1749286241948,-1000.0,0.00020711,2]
[364896234,1749286241959,-600.0,0.00020711,2]
[364896235,1749286241968,-600.0,0.00020711,2]
[364896236,1749286241979,-1000.0,0.00020711,2]
[364896237,1749286241989,-600.0,0.00020711,2]
[364896238,1749286241999,-600.0,0.00020711,2]
[364896239,1749286242009,-1000.0,0.00020711,2]
[364896240,1749286242019,-600.0,0.00020711,2]
[364896241,1749286242029,-600.0,0.00020711,2]
[364896242,1749286242040,-1000.0,0.00020711,2]
[364896243,1749286242049,-600.0,0.00020711,2]
[364896244,1749286242059,-600.0,0.00020711,2]
[364896245,1749286242068,-500.0,0.00020711,2]
[364896246,1749286242079,-1000.0,0.00020711,2]
[364896247,1749286242089,-600.0,0.00020711,2]
[364896248,1749286242099,-1300.0,0.00020711,2]
[364896249,1749286242108,-500.0,0.00020711,2]
[364896250,1749286242118,-600.0,0.00020711,2]
[364896251,1749286242127,-500.0,0.00020711,2]
[364896252,1749286242137,-600.0,0.00020711,2]
[364896253,1749286242147,-600.0,0.00020711,2]
[364896254,1749286242158,-1000.0,0.00020711,2]
[364896255,1749286242168,-1300.0,0.00020711,2]
[364896256,1749286242178,-500.0,0.00020711,2]
[364896257,1749286242188,-680.57088092,0.00020711,2]
[364896258,1749286242199,-500.0,0.00020711,2]
[364896259,1749286242208,-733.76508247,0.00020711,2]
[364896260,1749286242218,-600.0,0.00020711,2]
[364896261,1749286242228,-1000.0,0.00020711,2]
[364896262,1749286242238,-894.75325653,0.00020711,2]
[364896263,1749286242248,-965.91941016,0.00020711,2]
[364896264,1749286242258,-1000.0,0.00020711,2]
[364896265,1749286242273,-600.0,0.00020711,2]
[364896266,1749286242284,-1300.0,0.00020711,2]
[364896267,1749286242294,-600.0,0.00020711,2]
[364896268,1749286242304,-1047.21468164,0.00020711,2]
[364896269,1749286242314,-600.0,0.00020711,2]
[364896270,1749286242324,-1300.0,0.00020711,2]
[364896271,1749286242334,-600.0,0.00020711,2]
[364896272,1749286242345,-1300.0,0.00020711,2]
[364896273,1749286242355,-600.0,0.00020711,2]
[364896274,1749286242365,-1300.0,0.00020711,2]
[364896275,1749286242375,-1300.0,0.00020711,2]
[364896276,1749286242384,-600.0,0.00020711,2]
[364896277,1749286242394,-600.0,0.00020711,2]
[364896278,1749286242403,-1300.0,0.00020711,2]
[364896279,1749286242412,-1300.0,0.00020711,2]
[364896280,1749286242422,-600.0,0.00020711,2]
[364896281,1749286242432,-600.0,0.00020711,2]
[364896282,1749286242441,-500.0,0.00020711,2]
[364896283,1749286242451,-1300.0,0.00020711,2]
[364896284,1749286242460,-600.0,0.00020711,2]
[364896285,1749286242470,-600.0,0.00020711,2]
[364896286,1749286242479,-656.01818502,0.00020711,2]
[364896287,1749286242489,-1300.0,0.00020711,2]
[364896288,1749286242498,-600.0,0.00020711,2]
[364896289,1749286242508,-600.0,0.00020711,2]
[364896290,1749286242518,-1300.0,0.00020711,2]
[364896291,1749286242527,-600.0,0.00020711,2]
[364896292,1749286242537,-810.81185913,0.00020711,2]
[364896293,1749286242550,-1300.0,0.00020711,2]
[364896294,1749286242560,-600.0,0.00020711,2]
[364896295,1749286242570,-600.0,0.00020711,2]
[364896297,1749286242580,-600.0,0.00020711,2]
[364896298,1749286242589,-2157.76685905,0.00020711,2]
[364896299,1749286242600,-600.0,0.00020711,2]
[364896300,1749286242610,-600.0,0.00020711,2]
[364896303,1749286242621,-600.0,0.00020711,2]
[364896304,1749286242631,-600.0,0.00020711,2]
[364896305,1749286242640,-500.0,0.00020711,2]
[364896306,1749286242650,-600.0,0.00020711,2]